[Event "*** Titled Tuesday Blitz"]
[Site "Chess.com"]
[Date "2021.04.06"]
[Round "2"]
[White "googlegoom"]
[Black "Vandros57"]
[Result "1-0"]
[WhiteElo "2437"]
[BlackElo "2205"]
[TimeControl "180+1"]
[EndTime "10:18:46 PDT"]
[Termination "googlegoom won on time"]

1. Nf3 {[%clk 0:03:00.9]} 1... Nf6 {[%clk 0:02:58.9]} 2. b3 {[%clk 0:02:53.3]}
2... d5 {[%clk 0:02:51]} 3. Bb2 {[%clk 0:02:54.2]} 3... Bg4 {[%clk 0:02:48.3]}
4. e3 {[%clk 0:02:54.2]} 4... Nc6 {[%clk 0:02:42.6]} 5. d4 {[%clk 0:02:53.2]}
5... e6 {[%clk 0:02:37.8]} 6. Be2 {[%clk 0:02:53]} 6... Bd6 {[%clk 0:02:36]} 7.
Nbd2 {[%clk 0:02:53.2]} 7... Ne7 {[%clk 0:02:34.5]} 8. c4 {[%clk 0:02:52.8]}
8... c6 {[%clk 0:02:33.6]} 9. a3 {[%clk 0:02:52.1]} 9... O-O {[%clk 0:02:32.9]}
10. b4 {[%clk 0:02:52]} 10... a6 {[%clk 0:02:31.1]} 11. Nb3 {[%clk 0:02:48.9]}
11... Ng6 {[%clk 0:02:29.2]} 12. Nc5 {[%clk 0:02:48.4]} 12... Qc7 {[%clk
0:02:23.5]} 13. h3 {[%clk 0:02:43.5]} 13... Bxf3 {[%clk 0:02:21.5]} 14. gxf3
{[%clk 0:02:43.7]} 14... b6 {[%clk 0:02:06.8]} 15. Nb3 {[%clk 0:02:41.5]} 15...
e5 {[%clk 0:01:59.6]} 16. Rc1 {[%clk 0:02:31.8]} 16... Qe7 {[%clk 0:01:48.4]}
17. h4 {[%clk 0:02:15]} 17... h5 {[%clk 0:01:45.1]} 18. Kf1 {[%clk 0:02:00.3]}
18... exd4 {[%clk 0:01:42.5]} 19. Nxd4 {[%clk 0:01:57.8]} 19... Rac8 {[%clk
0:01:26]} 20. Nf5 {[%clk 0:01:56.1]} 20... Qd7 {[%clk 0:01:24]} 21. Nxd6 {[%clk
0:01:55.8]} 21... Qxd6 {[%clk 0:01:23.6]} 22. cxd5 {[%clk 0:01:55]} 22... cxd5
{[%clk 0:01:20.7]} 23. Rxc8 {[%clk 0:01:41.4]} 23... Rxc8 {[%clk 0:01:19.7]} 24.
Bxa6 {[%clk 0:01:42.3]} 24... Rc7 {[%clk 0:01:04.1]} 25. Bd3 {[%clk 0:01:41.7]}
25... Ne5 {[%clk 0:00:59.9]} 26. Kg2 {[%clk 0:01:38.2]} 26... Nc4 {[%clk
0:00:52.8]} 27. Bxc4 {[%clk 0:01:32]} 27... Rxc4 {[%clk 0:00:49.8]} 28. Bxf6
{[%clk 0:01:32.5]} 28... Qxf6 {[%clk 0:00:44.5]} 29. Qxd5 {[%clk 0:01:32]} 29...
Rxh4 {[%clk 0:00:41.9]} 30. Rxh4 {[%clk 0:01:30.9]} 30... Qxh4 {[%clk
0:00:41.4]} 31. Qa8+ {[%clk 0:01:27]} 31... Kh7 {[%clk 0:00:40.4]} 32. Qe4+
{[%clk 0:01:27.6]} 32... Qxe4 {[%clk 0:00:35.3]} 33. fxe4 {[%clk 0:01:28.5]}
33... Kg6 {[%clk 0:00:29.8]} 34. a4 {[%clk 0:01:26.1]} 34... Kf6 {[%clk
0:00:29.5]} 35. Kg3 {[%clk 0:01:11.9]} 35... Ke5 {[%clk 0:00:26.3]} 36. a5
{[%clk 0:01:04.9]} 36... bxa5 {[%clk 0:00:25.7]} 37. bxa5 {[%clk 0:01:05.3]}
37... Kd6 {[%clk 0:00:20.2]} 38. Kh4 {[%clk 0:00:47.8]} 38... g6 {[%clk
0:00:19.5]} 39. e5+ {[%clk 0:00:35.9]} 39... Kc6 {[%clk 0:00:15]} 40. f4 {[%clk
0:00:36.4]} 40... Kb5 {[%clk 0:00:14.2]} 41. f5 {[%clk 0:00:36.9]} 41... gxf5
{[%clk 0:00:12.8]} 42. Kxh5 {[%clk 0:00:36.7]} 42... Kxa5 {[%clk 0:00:13.7]} 43.
Kg5 {[%clk 0:00:37.1]} 43... Kb5 {[%clk 0:00:12.4]} 44. Kh5 {[%clk 0:00:36.4]}
44... Kc6 {[%clk 0:00:11.4]} 45. Kg5 {[%clk 0:00:34.4]} 45... Kd7 {[%clk
0:00:07.8]} 46. Kf6 {[%clk 0:00:31.2]} 46... Kc6 {[%clk 0:00:04.5]} 47. Kxf7
{[%clk 0:00:27.2]} 1-0

[Event "*** Titled Tuesday Blitz"]
[Site "Chess.com"]
[Date "2021.04.06"]
[Round "2"]
[White "federicosellitti"]
[Black "Onischuk_V"]
[Result "1-0"]
[WhiteElo "2568"]
[BlackElo "2858"]
[TimeControl "180+1"]
[EndTime "10:18:47 PDT"]
[Termination "federicosellitti won on time"]

1. e4 {[%clk 0:03:00.9]} 1... d6 {[%clk 0:02:58.2]} 2. Nc3 {[%clk 0:03:00.3]}
2... Nf6 {[%clk 0:02:58.5]} 3. g3 {[%clk 0:03:00.9]} 3... g6 {[%clk 0:02:58.8]}
4. Bg2 {[%clk 0:03:01.4]} 4... Bg7 {[%clk 0:02:59.5]} 5. d3 {[%clk 0:03:02.1]}
5... O-O {[%clk 0:02:59.1]} 6. h3 {[%clk 0:03:02.6]} 6... c5 {[%clk 0:02:59.6]}
7. Be3 {[%clk 0:03:03.1]} 7... Nc6 {[%clk 0:02:59.9]} 8. Qd2 {[%clk 0:03:03.7]}
8... Rb8 {[%clk 0:02:50.7]} 9. Bh6 {[%clk 0:02:59]} 9... b5 {[%clk 0:02:50]} 10.
Bxg7 {[%clk 0:02:49.6]} 10... Kxg7 {[%clk 0:02:49.7]} 11. f4 {[%clk 0:02:50.3]}
11... e5 {[%clk 0:02:25.8]} 12. Nf3 {[%clk 0:02:50.2]} 12... exf4 {[%clk
0:01:49.8]} 13. gxf4 {[%clk 0:02:51.1]} 13... b4 {[%clk 0:01:50.1]} 14. Ne2
{[%clk 0:02:50.2]} 14... d5 {[%clk 0:01:50.5]} 15. e5 {[%clk 0:02:22.6]} 15...
Nh5 {[%clk 0:01:50]} 16. O-O {[%clk 0:02:23.2]} 16... Ne7 {[%clk 0:01:48.8]} 17.
Nh4 {[%clk 0:02:21.4]} 17... Nf5 {[%clk 0:01:32.9]} 18. Nxf5+ {[%clk 0:02:17.8]}
18... Bxf5 {[%clk 0:01:33.5]} 19. Qe1 {[%clk 0:02:16.3]} 19... f6 {[%clk
0:01:19.3]} 20. Ng3 {[%clk 0:02:06.5]} 20... Nxg3 {[%clk 0:01:07.7]} 21. Qxg3
{[%clk 0:02:07.4]} 21... c4 {[%clk 0:01:07.3]} 22. dxc4 {[%clk 0:01:11.9]} 22...
dxc4 {[%clk 0:01:04.8]} 23. Rad1 {[%clk 0:01:12.3]} 23... Qb6+ {[%clk
0:01:04.4]} 24. Kh2 {[%clk 0:01:11.9]} 24... Rbd8 {[%clk 0:01:02.1]} 25. c3
{[%clk 0:01:06]} 25... Rd3 {[%clk 0:00:59.1]} 26. Qh4 {[%clk 0:00:58.1]} 26...
bxc3 {[%clk 0:00:34.6]} 27. bxc3 {[%clk 0:00:57.5]} 27... Qd8 {[%clk 0:00:34.7]}
28. Rb1 {[%clk 0:00:49.3]} 28... Rd7 {[%clk 0:00:30.7]} 29. Rb4 {[%clk 0:00:41]}
29... fxe5 {[%clk 0:00:28.7]} 30. Qxd8 {[%clk 0:00:41.3]} 30... Rfxd8 {[%clk
0:00:24.8]} 31. fxe5 {[%clk 0:00:42.2]} 31... Rd2 {[%clk 0:00:12]} 32. Kg1
{[%clk 0:00:41.9]} 32... Rxa2 {[%clk 0:00:10.6]} 33. Rxc4 {[%clk 0:00:39.5]}
33... Rdd2 {[%clk 0:00:09.9]} 34. Bf3 {[%clk 0:00:40.1]} 34... Kh6 {[%clk
0:00:08.4]} 35. Rd4 {[%clk 0:00:38.1]} 35... a5 {[%clk 0:00:05.6]} 36. Rxd2
{[%clk 0:00:35.9]} 36... Rxd2 {[%clk 0:00:05.6]} 37. Rf2 {[%clk 0:00:36.8]}
37... Rd3 {[%clk 0:00:05.2]} 38. c4 {[%clk 0:00:30.3]} 38... a4 {[%clk
0:00:03.9]} 39. Bd5 {[%clk 0:00:29.1]} 39... a3 {[%clk 0:00:03.2]} 40. Ra2
{[%clk 0:00:25.4]} 40... Rc3 {[%clk 0:00:02.2]} 41. e6 {[%clk 0:00:24.2]} 41...
Kg7 {[%clk 0:00:01.1]} 42. e7 {[%clk 0:00:15.4]} 1-0

[Event "*** Titled Tuesday Blitz"]
[Site "Chess.com"]
[Date "2021.04.06"]
[Round "2"]
[White "tjychess"]
[Black "Eloist"]
[Result "1-0"]
[WhiteElo "2628"]
[BlackElo "2356"]
[TimeControl "180+1"]
[EndTime "10:18:49 PDT"]
[Termination "tjychess won by checkmate"]

1. d4 {[%clk 0:03:00.9]} 1... e6 {[%clk 0:02:55.9]} 2. Nf3 {[%clk 0:03:00.2]}
2... Nf6 {[%clk 0:02:54.6]} 3. c4 {[%clk 0:02:59.6]} 3... b6 {[%clk 0:02:54.2]}
4. g3 {[%clk 0:02:57.8]} 4... Bb7 {[%clk 0:02:54.2]} 5. Bg2 {[%clk 0:02:58.3]}
5... Be7 {[%clk 0:02:54.6]} 6. O-O {[%clk 0:02:58.9]} 6... O-O {[%clk 0:02:55]}
7. Nc3 {[%clk 0:02:58.5]} 7... Ne4 {[%clk 0:02:55.1]} 8. Qc2 {[%clk 0:02:57.1]}
8... Nxc3 {[%clk 0:02:54.4]} 9. Qxc3 {[%clk 0:02:58]} 9... f5 {[%clk 0:02:54]}
10. b3 {[%clk 0:02:49.2]} 10... d6 {[%clk 0:02:53.9]} 11. Bb2 {[%clk 0:02:48.7]}
11... Bf6 {[%clk 0:02:48.2]} 12. Qd2 {[%clk 0:02:48.3]} 12... Qd7 {[%clk
0:02:44.4]} 13. Rac1 {[%clk 0:02:38.8]} 13... a5 {[%clk 0:02:37.2]} 14. a3
{[%clk 0:02:29]} 14... Be4 {[%clk 0:02:30.6]} 15. Rfd1 {[%clk 0:02:24.8]} 15...
Na6 {[%clk 0:02:26.3]} 16. b4 {[%clk 0:02:08.4]} 16... axb4 {[%clk 0:02:23.9]}
17. axb4 {[%clk 0:02:09.3]} 17... b5 {[%clk 0:02:21.4]} 18. c5 {[%clk
0:02:04.1]} 18... Nb8 {[%clk 0:02:17.9]} 19. Qe3 {[%clk 0:01:34.4]} 19... Nc6
{[%clk 0:02:16.2]} 20. Ne5 {[%clk 0:01:34.6]} 20... Bxe5 {[%clk 0:01:54.2]} 21.
Bxe4 {[%clk 0:01:18]} 21... fxe4 {[%clk 0:01:48.7]} 22. dxe5 {[%clk 0:01:17.4]}
22... d5 {[%clk 0:01:41.7]} 23. Qxe4 {[%clk 0:01:17.6]} 23... Qf7 {[%clk
0:01:36.4]} 24. Qe3 {[%clk 0:01:13.9]} 24... Nxb4 {[%clk 0:01:31.5]} 25. c6
{[%clk 0:01:13.9]} 25... Ra6 {[%clk 0:01:07.2]} 26. f3 {[%clk 0:01:02]} 26...
Nxc6 {[%clk 0:00:53.4]} 27. Rc5 {[%clk 0:00:55.1]} 27... Na5 {[%clk 0:00:51.4]}
28. Rxb5 {[%clk 0:00:43.7]} 28... Nc4 {[%clk 0:00:51.1]} 29. Qd4 {[%clk
0:00:41.3]} 29... c5 {[%clk 0:00:45.3]} 30. Qxc5 {[%clk 0:00:32.9]} 30... Ra2
{[%clk 0:00:38.1]} 31. Qd4 {[%clk 0:00:28.1]} 31... Qf5 {[%clk 0:00:33.6]} 32.
Ra1 {[%clk 0:00:20.4]} 32... Rxa1+ {[%clk 0:00:31.4]} 33. Bxa1 {[%clk
0:00:21.3]} 33... Ra8 {[%clk 0:00:25.2]} 34. Bc3 {[%clk 0:00:20.5]} 34... Qc2
{[%clk 0:00:21.9]} 35. Qd3 {[%clk 0:00:15.3]} 35... Qc1+ {[%clk 0:00:17]} 36.
Kg2 {[%clk 0:00:15.5]} 36... Ra2 {[%clk 0:00:15.4]} 37. Rb8+ {[%clk 0:00:14.6]}
37... Kf7 {[%clk 0:00:15.4]} 38. Qxh7 {[%clk 0:00:07.9]} 38... Ne3+ {[%clk
0:00:15.2]} 39. Kh3 {[%clk 0:00:07.9]} 39... Qf1+ {[%clk 0:00:13.8]} 40. Kh4
{[%clk 0:00:08.4]} 40... Nf5+ {[%clk 0:00:13.6]} 41. Kg5 {[%clk 0:00:07.7]}
41... Qc1+ {[%clk 0:00:10.3]} 42. f4 {[%clk 0:00:08]} 42... Qxc3 {[%clk
0:00:09.2]} 43. Qg8+ {[%clk 0:00:07.7]} 43... Ke7 {[%clk 0:00:09.2]} 44. Qe8#
{[%clk 0:00:08.6]} 1-0

[Event "*** Titled Tuesday Blitz"]
[Site "Chess.com"]
[Date "2021.04.06"]
[Round "2"]
[White "Tsyhanchuk_Stanislav"]
[Black "Borsuk_Konstantin"]
[Result "0-1"]
[WhiteElo "2474"]
[BlackElo "2680"]
[TimeControl "180+1"]
[EndTime "10:18:50 PDT"]
[Termination "Borsuk_Konstantin won on time"]

1. e4 {[%clk 0:03:00.9]} 1... e6 {[%clk 0:02:59.4]} 2. d4 {[%clk 0:03:00.3]}
2... d5 {[%clk 0:02:59.5]} 3. Nc3 {[%clk 0:03:00.9]} 3... Bb4 {[%clk 0:02:59.3]}
4. e5 {[%clk 0:03:00.1]} 4... b6 {[%clk 0:02:59.1]} 5. a3 {[%clk 0:02:57.3]}
5... Bf8 {[%clk 0:02:59]} 6. Nh3 {[%clk 0:02:56.6]} 6... Ne7 {[%clk 0:02:51.6]}
7. Nf4 {[%clk 0:02:54.9]} 7... g6 {[%clk 0:02:43.3]} 8. h4 {[%clk 0:02:40.4]}
8... h5 {[%clk 0:02:35.5]} 9. g4 {[%clk 0:02:39.7]} 9... hxg4 {[%clk 0:02:33.3]}
10. Qxg4 {[%clk 0:02:40.6]} 10... Nf5 {[%clk 0:02:30.6]} 11. Nxg6 {[%clk
0:02:33.1]} 11... fxg6 {[%clk 0:02:21.5]} 12. Qxg6+ {[%clk 0:02:34]} 12... Kd7
{[%clk 0:02:21.4]} 13. Nxd5 {[%clk 0:02:07.6]} 13... c6 {[%clk 0:02:01.1]} 14.
Bg5 {[%clk 0:01:43.3]} 14... Be7 {[%clk 0:01:44.3]} 15. Nxe7 {[%clk 0:01:13.3]}
15... Nxe7 {[%clk 0:01:43.6]} 16. Qg7 {[%clk 0:01:05.1]} 16... Qf8 {[%clk
0:01:25.5]} 17. Qxf8 {[%clk 0:01:04.9]} 17... Rxf8 {[%clk 0:01:25.1]} 18. h5
{[%clk 0:01:05.2]} 18... Ba6 {[%clk 0:01:04.3]} 19. Bg2 {[%clk 0:00:56.8]} 19...
Nf5 {[%clk 0:00:45]} 20. h6 {[%clk 0:00:51.8]} 20... Kc7 {[%clk 0:00:42.4]} 21.
h7 {[%clk 0:00:41]} 21... Nd7 {[%clk 0:00:42.6]} 22. O-O-O {[%clk 0:00:36.2]}
22... Bc4 {[%clk 0:00:28.8]} 23. Rh2 {[%clk 0:00:21.7]} 23... Bd5 {[%clk
0:00:25.2]} 24. Bxd5 {[%clk 0:00:21.1]} 24... cxd5 {[%clk 0:00:24.7]} 25. Rdh1
{[%clk 0:00:20.6]} 25... Rh8 {[%clk 0:00:24.8]} 26. c3 {[%clk 0:00:19.1]} 26...
Raf8 {[%clk 0:00:22.5]} 27. f4 {[%clk 0:00:12.3]} 27... Rf7 {[%clk 0:00:22.3]}
28. b3 {[%clk 0:00:06.7]} 28... Nf8 {[%clk 0:00:21.1]} 29. Rg1 {[%clk
0:00:07.1]} 29... Rfxh7 {[%clk 0:00:20.6]} 30. Re2 {[%clk 0:00:07.6]} 30... Rh1
{[%clk 0:00:20.1]} 31. Ree1 {[%clk 0:00:07.4]} 31... Rxg1 {[%clk 0:00:17.9]} 32.
Rxg1 {[%clk 0:00:08.3]} 32... Nd7 {[%clk 0:00:17.6]} 33. a4 {[%clk 0:00:06.1]}
33... Kc6 {[%clk 0:00:17.8]} 34. Kb2 {[%clk 0:00:05.8]} 34... Rh2+ {[%clk
0:00:17.7]} 35. Ka3 {[%clk 0:00:05.7]} 35... Rc2 {[%clk 0:00:17.7]} 36. Bf6
{[%clk 0:00:01.9]} 36... Rxc3 {[%clk 0:00:17.8]} 37. Rg8 {[%clk 0:00:02.3]}
37... Kc7 {[%clk 0:00:15.3]} 38. Re8 {[%clk 0:00:02.5]} 38... Nxd4 {[%clk
0:00:14.6]} 39. Rxe6 {[%clk 0:00:02.4]} 39... Nxe6 {[%clk 0:00:14.2]} 40. Be7
{[%clk 0:00:02.9]} 40... Nxf4 {[%clk 0:00:13.7]} 41. Bd6+ {[%clk 0:00:03.5]}
41... Kc6 {[%clk 0:00:13.8]} 42. e6 {[%clk 0:00:03.9]} 42... Nxe6 {[%clk
0:00:14]} 0-1

[Event "*** Titled Tuesday Blitz"]
[Site "Chess.com"]
[Date "2021.04.06"]
[Round "2"]
[White "Xeniya2005"]
[Black "pastouche06"]
[Result "0-1"]
[WhiteElo "2323"]
[BlackElo "2603"]
[TimeControl "180+1"]
[EndTime "10:18:50 PDT"]
[Termination "pastouche06 won on time"]

1. e4 {[%clk 0:03:00.9]} 1... c6 {[%clk 0:03:00.1]} 2. d4 {[%clk 0:03:00]} 2...
d5 {[%clk 0:03:00.3]} 3. Nd2 {[%clk 0:02:59.3]} 3... dxe4 {[%clk 0:02:57.5]} 4.
Nxe4 {[%clk 0:03:00.2]} 4... Nf6 {[%clk 0:02:54.7]} 5. Nxf6+ {[%clk 0:02:58.2]}
5... exf6 {[%clk 0:02:55.6]} 6. c3 {[%clk 0:02:50.2]} 6... Bd6 {[%clk
0:02:55.8]} 7. Bd3 {[%clk 0:02:49.4]} 7... O-O {[%clk 0:02:55.4]} 8. Ne2 {[%clk
0:02:48.5]} 8... Re8 {[%clk 0:02:56.3]} 9. Be3 {[%clk 0:02:47.4]} 9... Nd7
{[%clk 0:02:55]} 10. Qc2 {[%clk 0:02:46.8]} 10... Nf8 {[%clk 0:02:55.1]} 11.
O-O-O {[%clk 0:02:44.4]} 11... Be6 {[%clk 0:02:53.2]} 12. Kb1 {[%clk 0:02:40.7]}
12... b5 {[%clk 0:02:50.8]} 13. Qd2 {[%clk 0:02:21.2]} 13... a5 {[%clk
0:02:20.9]} 14. h4 {[%clk 0:02:07.7]} 14... a4 {[%clk 0:02:13.7]} 15. Rhe1
{[%clk 0:02:02.3]} 15... Qd7 {[%clk 0:01:51.7]} 16. f3 {[%clk 0:01:54]} 16...
Bf5 {[%clk 0:01:47.8]} 17. g4 {[%clk 0:01:46.6]} 17... Bxd3+ {[%clk 0:01:46.2]}
18. Qxd3 {[%clk 0:01:47.5]} 18... Re7 {[%clk 0:01:43.1]} 19. Bf2 {[%clk
0:01:32.8]} 19... Rae8 {[%clk 0:01:41.8]} 20. Ng3 {[%clk 0:01:28.5]} 20... Bxg3
{[%clk 0:01:29.4]} 21. Bxg3 {[%clk 0:01:27.8]} 21... Qd5 {[%clk 0:01:29.4]} 22.
Rxe7 {[%clk 0:01:10.9]} 22... Rxe7 {[%clk 0:01:30.3]} 23. Re1 {[%clk 0:01:10.8]}
23... Rxe1+ {[%clk 0:01:16.9]} 24. Bxe1 {[%clk 0:01:09.7]} 24... Ne6 {[%clk
0:01:17.3]} 25. Qe4 {[%clk 0:00:52.3]} 25... Qc4 {[%clk 0:01:17.4]} 26. f4
{[%clk 0:00:51.4]} 26... g6 {[%clk 0:01:03.6]} 27. f5 {[%clk 0:00:49.2]} 27...
Nc7 {[%clk 0:01:00.5]} 28. h5 {[%clk 0:00:40]} 28... gxh5 {[%clk 0:00:23.7]} 29.
gxh5 {[%clk 0:00:28.3]} 29... Kg7 {[%clk 0:00:22]} 30. Bd2 {[%clk 0:00:19.4]}
30... Qf1+ {[%clk 0:00:19.1]} 31. Kc2 {[%clk 0:00:19.2]} 31... Nd5 {[%clk
0:00:20]} 32. h6+ {[%clk 0:00:14.2]} 32... Kf8 {[%clk 0:00:20.2]} 33. Qg4 {[%clk
0:00:08.5]} 33... Ke7 {[%clk 0:00:14]} 34. Qe4+ {[%clk 0:00:07.3]} 34... Kd7
{[%clk 0:00:14.3]} 35. Qg4 {[%clk 0:00:02.8]} 35... Qf2 {[%clk 0:00:11.9]} 36.
Qe4 {[%clk 0:00:02.3]} 36... Qh2 {[%clk 0:00:08.3]} 37. Kd3 {[%clk 0:00:01.3]}
37... Qg3+ {[%clk 0:00:06]} 0-1

[Event "*** Titled Tuesday Blitz"]
[Site "Chess.com"]
[Date "2021.04.06"]
[Round "2"]
[White "Horizonevent"]
[Black "Fortitudine"]
[Result "0-1"]
[WhiteElo "2492"]
[BlackElo "2284"]
[TimeControl "180+1"]
[EndTime "10:18:50 PDT"]
[Termination "Fortitudine won on time"]

1. Nc3 {[%clk 0:03:00.9]} 1... c5 {[%clk 0:02:52.3]} 2. e4 {[%clk 0:02:57.1]}
2... e6 {[%clk 0:02:51.6]} 3. Nf3 {[%clk 0:02:56.7]} 3... a6 {[%clk 0:02:50.6]}
4. d4 {[%clk 0:02:56.7]} 4... cxd4 {[%clk 0:02:51.5]} 5. Nxd4 {[%clk 0:02:57.6]}
5... Qc7 {[%clk 0:02:51.7]} 6. g3 {[%clk 0:02:57]} 6... b5 {[%clk 0:02:46.4]} 7.
Bg2 {[%clk 0:02:56.2]} 7... Bb7 {[%clk 0:02:46.9]} 8. a3 {[%clk 0:02:55.6]} 8...
d6 {[%clk 0:02:46]} 9. O-O {[%clk 0:02:54.6]} 9... Nf6 {[%clk 0:02:46.3]} 10.
Re1 {[%clk 0:02:53.3]} 10... Nbd7 {[%clk 0:02:42.6]} 11. Bg5 {[%clk 0:02:53.1]}
11... Be7 {[%clk 0:02:42.1]} 12. a4 {[%clk 0:02:44.8]} 12... b4 {[%clk
0:02:41.6]} 13. Nd5 {[%clk 0:02:42.9]} 13... exd5 {[%clk 0:02:35.1]} 14. exd5
{[%clk 0:02:42.3]} 14... Ne5 {[%clk 0:02:05.9]} 15. f4 {[%clk 0:01:59.4]} 15...
O-O {[%clk 0:01:55.6]} 16. fxe5 {[%clk 0:01:51.1]} 16... dxe5 {[%clk 0:01:56.5]}
17. Nf5 {[%clk 0:01:51.2]} 17... Bc5+ {[%clk 0:01:55.6]} 18. Kh1 {[%clk
0:01:51.3]} 18... Qd7 {[%clk 0:01:09]} 19. Nh6+ {[%clk 0:01:25.5]} 19... Kh8
{[%clk 0:00:58.3]} 20. Bxf6 {[%clk 0:01:25]} 20... gxf6 {[%clk 0:00:55.6]} 21.
Qf3 {[%clk 0:01:23.2]} 21... Be7 {[%clk 0:00:47.5]} 22. Rad1 {[%clk 0:01:20]}
22... Bd8 {[%clk 0:00:42.6]} 23. Qh5 {[%clk 0:01:10.3]} 23... Rc8 {[%clk
0:00:33.6]} 24. Be4 {[%clk 0:00:57.3]} 24... Rc4 {[%clk 0:00:29.1]} 25. Qf5
{[%clk 0:00:39.1]} 25... Qxf5 {[%clk 0:00:23.1]} 26. Nxf5 {[%clk 0:00:40]} 26...
Bc7 {[%clk 0:00:06.4]} 27. Kg2 {[%clk 0:00:29.2]} 27... Rd8 {[%clk 0:00:06.4]}
28. Kf3 {[%clk 0:00:27.9]} 28... b3 {[%clk 0:00:04.2]} 29. cxb3 {[%clk
0:00:18.3]} 29... Rb4 {[%clk 0:00:04.6]} 30. Re3 {[%clk 0:00:18]} 30... Bb6
{[%clk 0:00:05.1]} 31. Rc3 {[%clk 0:00:12.5]} 31... Bd4 {[%clk 0:00:05.6]} 32.
Nxd4 {[%clk 0:00:11.7]} 32... exd4 {[%clk 0:00:06.5]} 33. Rcd3 {[%clk
0:00:11.9]} 33... Bxd5 {[%clk 0:00:06.7]} 34. Rxd4 {[%clk 0:00:09.4]} 34...
Bxe4+ {[%clk 0:00:07.1]} 35. Kxe4 {[%clk 0:00:09.8]} 35... Rdxd4+ {[%clk
0:00:06.8]} 36. Rxd4 {[%clk 0:00:10.7]} 36... Rxb3 {[%clk 0:00:07.2]} 37. Kf5
{[%clk 0:00:02.5]} 37... Kg7 {[%clk 0:00:06.4]} 38. Rg4+ {[%clk 0:00:02.1]}
38... Kf8 {[%clk 0:00:06.6]} 0-1

[Event "*** Titled Tuesday Blitz"]
[Site "Chess.com"]
[Date "2021.04.06"]
[Round "2"]
[White "GMHess"]
[Black "GM_LOADING"]
[Result "0-1"]
[WhiteElo "2768"]
[BlackElo "2535"]
[TimeControl "180+1"]
[EndTime "10:18:54 PDT"]
[Termination "GM_LOADING won by checkmate"]

1. b3 {[%clk 0:03:00.9]} 1... Nf6 {[%clk 0:02:59.7]} 2. Bb2 {[%clk 0:03:01.5]}
2... d5 {[%clk 0:03:00.1]} 3. h3 {[%clk 0:03:01.4]} 3... c5 {[%clk 0:02:57.2]}
4. e3 {[%clk 0:03:01]} 4... Nc6 {[%clk 0:02:57.6]} 5. d3 {[%clk 0:03:00.4]} 5...
g6 {[%clk 0:02:53.9]} 6. Nd2 {[%clk 0:02:58.8]} 6... Bg7 {[%clk 0:02:54.2]} 7.
Ne2 {[%clk 0:02:59.5]} 7... O-O {[%clk 0:02:53]} 8. g4 {[%clk 0:02:59.6]} 8...
e5 {[%clk 0:02:50.9]} 9. Bg2 {[%clk 0:02:59.5]} 9... Be6 {[%clk 0:02:41.6]} 10.
Ng3 {[%clk 0:02:58.8]} 10... a5 {[%clk 0:02:29.6]} 11. a4 {[%clk 0:02:58.3]}
11... h6 {[%clk 0:02:22.4]} 12. Nf3 {[%clk 0:02:44.9]} 12... Nd7 {[%clk
0:02:10.7]} 13. e4 {[%clk 0:02:24]} 13... d4 {[%clk 0:02:03.6]} 14. Nf5 {[%clk
0:02:01.9]} 14... gxf5 {[%clk 0:01:45.9]} 15. gxf5 {[%clk 0:02:01.6]} 15... Kh7
{[%clk 0:01:45.2]} 16. Qe2 {[%clk 0:01:14.5]} 16... Nb4 {[%clk 0:01:40.7]} 17.
fxe6 {[%clk 0:00:55.1]} 17... fxe6 {[%clk 0:01:40.4]} 18. h4 {[%clk 0:00:50.5]}
18... Qe7 {[%clk 0:01:20.9]} 19. Rh3 {[%clk 0:00:33.8]} 19... Qf7 {[%clk
0:00:37]} 20. O-O-O {[%clk 0:00:29.7]} 20... b5 {[%clk 0:00:36.2]} 21. axb5
{[%clk 0:00:28.1]} 21... a4 {[%clk 0:00:36.3]} 22. Nd2 {[%clk 0:00:13.7]} 22...
a3 {[%clk 0:00:22.5]} 23. Ba1 {[%clk 0:00:13.4]} 23... Na2+ {[%clk 0:00:22.8]}
24. Kb1 {[%clk 0:00:13.4]} 24... Nc3+ {[%clk 0:00:23.5]} 25. Bxc3 {[%clk
0:00:13.4]} 25... dxc3 {[%clk 0:00:24.2]} 26. Nc4 {[%clk 0:00:12.6]} 26... Qxf2
{[%clk 0:00:20.8]} 27. Bf1 {[%clk 0:00:05.7]} 27... Qxe2 {[%clk 0:00:12.1]} 28.
Bxe2 {[%clk 0:00:06.6]} 28... Rf2 {[%clk 0:00:12.5]} 29. Re1 {[%clk 0:00:06.8]}
29... Bf6 {[%clk 0:00:07.4]} 30. Rf3 {[%clk 0:00:06.3]} 30... Rxf3 {[%clk
0:00:07.4]} 31. Bxf3 {[%clk 0:00:07.2]} 31... Bxh4 {[%clk 0:00:08.1]} 32. Rh1
{[%clk 0:00:07.5]} 32... a2+ {[%clk 0:00:08.3]} 33. Ka1 {[%clk 0:00:06.8]} 33...
Bg5 {[%clk 0:00:09]} 34. Bg4 {[%clk 0:00:05.9]} 34... Nf8 {[%clk 0:00:04.6]} 35.
b6 {[%clk 0:00:06.2]} 35... Kg7 {[%clk 0:00:03.7]} 36. Rf1 {[%clk 0:00:05.7]}
36... Ra6 {[%clk 0:00:01.6]} 37. b7 {[%clk 0:00:05.7]} 37... Nd7 {[%clk
0:00:01.3]} 38. Nxe5 {[%clk 0:00:05.1]} 38... Nb8 {[%clk 0:00:01.6]} 39. Rf7+
{[%clk 0:00:04.9]} 39... Kg8 {[%clk 0:00:02.2]} 40. Rc7 {[%clk 0:00:05.1]} 40...
Bc1 {[%clk 0:00:02.3]} 41. Nc4 {[%clk 0:00:04.7]} 41... Bb2+ {[%clk 0:00:02.2]}
42. Nxb2 {[%clk 0:00:04.8]} 42... cxb2+ {[%clk 0:00:03.1]} 43. Kxb2 {[%clk
0:00:05.1]} 43... a1=Q# {[%clk 0:00:04]} 0-1